[Event "2nd Bieszczady Chess-ch B 2022"]
[Site "Bystre"]
[Date "2022.07.21"]
[Round "6.8"]
[White "Trela, Konrad"]
[Black "Strojek, Kazimierz"]
[Result "0-1"]
[ECO "C11"]
[WhiteElo "1523"]
[BlackElo "1668"]
[Annotator "NA COMBH"]
[PlyCount "160"]
[EventDate "2022.07.17"]
[EventCountry "POL"]
[SourceTitle "playchess.com"]
[Source "ChessBase"]
[SourceQuality "1"]
[TimeControl "5400+30"]

1. e4 {[%emt 0:00:02]} e6 {[%emt 0:00:19]} 2. Nf3 {[%emt 0:00:07]} d5 {[%emt 0:00:35]} 3. Nc3 {[%emt 0:00:02]} Nf6 {[%emt 0:00:47]} 4. e5 {[%emt 0:00:05]} Nfd7 {[%emt 0:00:17]} 5. d4 {[%emt 0:00:01]} Be7 {[%emt 0:00:23]} 6. Bf4 {[%emt 0:03:01]} a6 {[%emt 0:00:29]} 7. Be2 {[%emt 0:17:34]} c5 {[%emt 0:00:26]} 8. dxc5 {[%emt 0:02:19]} Nxc5 {[%emt 0:01:15]} 9. O-O {[%emt 0:04:46]} Nc6 {[%emt 0:00:25]} 10. Nd4 {[%emt 0:15:16]} Qb6 {[%emt 0:05:45]} 11. Nxc6 {[%emt 0:15:13]} bxc6 {[%emt 0:00:36]} 12. Rb1 {[%emt 0:08:56]} a5 {[%emt 0:02:04]} 13. Be3 {[%emt 0:04:42]} Qc7 {[%emt 0:00:31]} 14. f4 {[%emt 0:00:37]} O-O {[%emt 0:02:07]} 15. Kh1 {[%emt 0:04:08]} Rb8 {[%emt 0:01:54]} 16. Rf3 {[%emt 0:01:43]} Rd8 {[%emt 0:03:02]} 17. Bxc5 {[%emt 0:06:27]} Bxc5 {[%emt 0:00:11]} 18. Rh3 {[%emt 0:00:07]} Rb4 {[%emt 0:02:10]} 19. Bd3 {[%emt 0:01:01]} g6 {[%emt 0:01:56]} 20. Qg4 {[%emt 0:00:52]} f5 {[%emt 0:05:09]} 21. Qh4 {[%emt 0:01:32]} Qe7 {[%emt 0:00:07]} 22. Qg3 {[%emt 0:01:50]} Bd7 {[%emt 0:01:56]} 23. Ne2 {[%emt 0:01:33]} Rdb8 {[%emt 0:02:08]} 24. b3 {[%emt 0:00:19]} a4 {[%emt 0:00:26]} 25. Ng1 {[%emt 0:02:09]} Bxg1 {[%emt 0:00:14]} 26. Kxg1 {[%emt 0:00:01]} axb3 {[%emt 0:00:13]} 27. axb3 {[%emt 0:01:29]} c5 {[%emt 0:00:31]} 28. Be2 {[%emt 0:03:31]} c4 {[%emt 0:01:47]} 29. Ra1 {[%emt 0:02:39]} cxb3 {[%emt 0:01:19]} 30. cxb3 {[%emt 0:00:08]} Qc5+ {[%emt 0:01:38]} 31. Kf1 {[%emt 0:00:01]} Qd4 {[%emt 0:01:38]} 32. Rc1 {[%emt 0:02:04]} Qxf4+ {[%emt 0:00:04]} 33. Qxf4 {[%emt 0:00:02]} Rxf4+ {[%emt 0:00:02]} 34. Kg1 {[%emt 0:01:11]} Rfb4 {[%emt 0:00:27]} 35. Rc7 {[%emt 0:00:34]} R4b7 {[%emt 0:00:03]} 36. Rhc3 {[%emt 0:00:36]} Kf8 {[%emt 0:00:11]} 37. Ba6 {[%emt 0:00:31]} Rxc7 {[%emt 0:00:55]} 38. Rc4 Rc6 39. Rxc6 {[%emt 0:00:32]} Ke8 {[%emt 0:00:32]} 40. Rc3 {[%emt 0:00:41]} Rb6 {[%emt 0:00:34]} 41. Be2 {[%emt 0:00:25]} h5 {[%emt 0:00:18]} 42. Kf2 {[%emt 0:00:34]} Kd8 {[%emt 0:00:24]} 43. Ke3 {[%emt 0:00:19]} Rb4 {[%emt 0:00:27]} 44. Kd2 {[%emt 0:01:07]} h4 {[%emt 0:00:49]} 45. g3 {[%emt 0:00:39]} g5 {[%emt 0:00:07]} 46. Kc2 {[%emt 0:01:18]} hxg3 {[%emt 0:01:38]} 47. hxg3 {[%emt 0:00:03]} Bb5 {[%emt 0:00:33]} 48. Bxb5 {[%emt 0:00:32]} Rxb5 {[%emt 0:00:02]} 49. Rc6 {[%emt 0:00:41]} Kd7 {[%emt 0:00:04]} 50. Rd6+ {[%emt 0:00:31]} Ke7 {[%emt 0:00:29]} 51. Kc3 {[%emt 0:00:33]} f4 {[%emt 0:00:23]} 52. gxf4 {[%emt 0:00:19]} gxf4 53. Ra6 {[%emt 0:00:16]} Kf7 {[%emt 0:00:09]} 54. b4 {[%emt 0:01:07]} Rb8 {[%emt 0:00:22]} 55. Kb3 {[%emt 0:00:30]} f3 {[%emt 0:04:34]} 56. Ra2 {[%emt 0:00:38]} Ke7 {[%emt 0:00:02]} 57. Ra7+ {[%emt 0:00:10]} Ke8 {[%emt 0:00:18]} 58. Ra2 {[%emt 0:00:30]} Ke7 {[%emt 0:00:04]} 59. Ra7+ {[%emt 0:00:07]} Kf8 {[%emt 0:00:15]} 60. Ra1 {[%emt 0:00:44]} Rb7 {[%emt 0:00:20]} 61. Rf1 Rf7 {[%emt 0:00:01]} 62. b5 {[%emt 0:00:53]} Ke8 {[%emt 0:04:47]} 63. Kb4 {[%emt 0:00:10]} Kd8 {[%emt 0:00:07]} 64. Ka5 {[%emt 0:00:49]} f2 {[%emt 0:00:21]} 65. Ka6 {[%emt 0:00:39]} Kc8 {[%emt 0:00:02]} 66. b6 {[%emt 0:00:29]} Kb8 {[%emt 0:00:02]} 67. b7 {[%emt 0:00:50]} d4 {[%emt 0:00:12]} 68. Kb5 {[%emt 0:00:33]} d3 {[%emt 0:00:07]} 69. Kc6 {[%emt 0:00:32]} d2 {[%emt 0:00:15]} 70. Rh1 {[%emt 0:00:34]} Rc7+ {[%emt 0:00:03]} 71. Kd6 {[%emt 0:00:26]} Rxb7 {[%emt 0:00:06]} 72. Kxe6 {[%emt 0:00:23]} Rc7 {[%emt 0:00:06]} 73. Kd6 {[%emt 0:00:43]} Rc1 {[%emt 0:00:06]} 74. Rd1 {[%emt 0:00:28]} Rxd1 {[%emt 0:00:16]} 75. e6 {[%emt 0:00:01]} Re1 {[%emt 0:00:03]} 76. e7 {[%emt 0:00:05]} d1=Q+ {[%emt 0:00:41]} 77. Kc5 {[%emt 0:00:15]} Re5+ {[%emt 0:00:07]} 78. Kc4 {[%emt 0:00:05]} Qd5+ {[%emt 0:02:33]} 79. Kc3 {[%emt 0:00:02]} Re3+ {[%emt 0:00:29]} 80. Kb2 {[%emt 0:00:14]} Qb3+ {[%emt 0:00:17]} 0-1

[Event "2nd Bieszczady Chess-ch B 2022"]
[Site "Bystre"]
[Date "2022.07.21"]
[Round "6.9"]
[White "Mikula, Maciej"]
[Black "Stefanski, Adam"]
[Result "1-0"]
[ECO "C00"]
[WhiteElo "1620"]
[BlackElo "1404"]
[Annotator "NA RC COMBH"]
[PlyCount "37"]
[EventDate "2022.07.17"]
[EventCountry "POL"]
[SourceTitle "playchess.com"]
[Source "ChessBase"]
[SourceQuality "1"]
[TimeControl "5400+30"]

1. e4 {[%emt 0:00:03]} e6 {[%emt 0:01:31]} 2. Nf3 {[%emt 0:00:17]} d5 {[%emt 0:00:14]} 3. e5 {[%emt 0:00:23]} c5 {[%emt 0:00:35]} 4. b4 {[%emt 0:00:42]} cxb4 {[%emt 0:01:25]} 5. a3 {[%emt 0:00:54]} bxa3 {[%emt 0:06:05]} 6. d4 {[%emt 0:00:53]} Nc6 {[%emt 0:04:15]} 7. c3 {[%emt 0:01:29]} Bd7 {[%emt 0:05:08]} 8. Bd3 {[%emt 0:04:00]} Rc8 {[%emt 0:06:50]} 9. Nxa3 {[%emt 0:01:49]} a6 {[%emt 0:03:03]} 10. Ng5 {[%emt 0:02:56]} Qa5 {[%emt 0:14:39]} 11. Bb2 {[%emt 0:05:32]} f5 {[%emt 0:10:22]} 12. Bxf5 {[%emt 0:05:53]} exf5 {[%emt 0:13:54]} 13. e6 {[%emt 0:01:24]} Bxe6 {[%emt 0:04:48]} 14. Nxe6 {[%emt 0:01:09]} Nd8 {[%emt 0:06:30]} 15. Qe2 {[%emt 0:06:53]} Nxe6 {[%emt 0:18:05]} 16. Qxe6+ {[%emt 0:00:11]} Ne7 {[%emt 0:00:32]} 17. Nc4 {[%emt 0:01:24]} Rc6 {[%emt 0:00:33]} 18. Qxc6+ {[%emt 0:00:41]} Nxc6 {[%emt 0:00:27]} 19. Nxa5 {[%emt 0:00:11]} 1-0

[Event "2nd Bieszczady Chess-ch B 2022"]
[Site "Bystre"]
[Date "2022.07.21"]
[Round "6.10"]
[White "Miga, Kamil"]
[Black "Warchol, Jacek"]
[Result "0-1"]
[ECO "C02"]
[WhiteElo "1072"]
[BlackElo "1785"]
[Annotator "NA COMBH"]
[PlyCount "42"]
[EventDate "2022.07.17"]
[EventCountry "POL"]
[SourceTitle "playchess.com"]
[Source "ChessBase"]
[SourceQuality "1"]
[TimeControl "5400+30"]

1. e4 {[%emt 0:00:03]} e6 {[%emt 0:00:13]} 2. d4 {[%emt 0:00:34]} d5 {[%emt 0:00:06]} 3. e5 {[%emt 0:00:01]} c5 {[%emt 0:00:22]} 4. c3 {[%emt 0:00:07]} Nc6 {[%emt 0:00:19]} 5. Nf3 {[%emt 0:00:20]} Bd7 {[%emt 0:00:11]} 6. Be2 {[%emt 0:01:56]} Nge7 {[%emt 0:01:30]} 7. Na3 {[%emt 0:01:38]} cxd4 {[%emt 0:01:51]} 8. cxd4 {[%emt 0:01:00]} Nf5 {[%emt 0:00:45]} 9. Nc2 {[%emt 0:00:52]} h5 {[%emt 0:08:35]} 10. Bd3 {[%emt 0:09:12]} Be7 {[%emt 0:02:55]} 11. Bxf5 {[%emt 0:07:54]} exf5 {[%emt 0:00:01]} 12. h4 {[%emt 0:03:57]} Qb6 {[%emt 0:02:22]} 13. O-O {[%emt 0:03:02]} Nb4 {[%emt 0:01:08]} 14. Ne3 {[%emt 0:05:40]} f4 {[%emt 0:06:20]} 15. Nc2 {[%emt 0:00:22]} Bb5 {[%emt 0:01:01]} 16. Nxb4 {[%emt 0:05:36]} Bxb4 {[%emt 0:01:06]} 17. Bxf4 {[%emt 0:00:36]} Bxf1 {[%emt 0:00:47]} 18. Kxf1 {[%emt 0:00:03]} O-O {[%emt 0:02:17]} 19. Ng5 {[%emt 0:06:04]} Be7 {[%emt 0:01:32]} 20. Nh7 {[%emt 0:02:33]} Kxh7 {[%emt 0:02:03]} 21. Bc1 Rh8 0-1

[Event "2nd Bieszczady Chess-ch B 2022"]
[Site "Bystre"]
[Date "2022.07.21"]
[Round "6.11"]
[White "Polak, Sylwia"]
[Black "Baranowski, Jan"]
[Result "1-0"]
[ECO "D45"]
[WhiteElo "1574"]
[BlackElo "1249"]
[Annotator "NA COMBH"]
[PlyCount "81"]
[EventDate "2022.07.17"]
[EventCountry "POL"]
[SourceTitle "playchess.com"]
[Source "ChessBase"]
[SourceQuality "1"]
[TimeControl "5400+30"]

1. d4 {[%emt 0:00:03]} d5 {[%emt 0:00:01]} 2. c4 {[%emt 0:00:05]} c6 {[%emt 0:00:03]} 3. Nc3 {[%emt 0:00:03]} Nf6 {[%emt 0:00:08]} 4. Nf3 {[%emt 0:00:05]} e6 {[%emt 0:00:11]} 5. e3 {[%emt 0:00:04]} Bd6 {[%emt 0:00:23]} 6. Bd3 {[%emt 0:00:12]} O-O {[%emt 0:00:39]} 7. O-O {[%emt 0:00:04]} Nbd7 {[%emt 0:00:28]} 8. e4 {[%emt 0:00:10]} dxe4 {[%emt 0:00:31]} 9. Nxe4 {[%emt 0:00:05]} Nxe4 {[%emt 0:00:21]} 10. Bxe4 {[%emt 0:00:04]} h6 {[%emt 0:05:22]} 11. Re1 {[%emt 0:03:15]} Nf6 {[%emt 0:00:13]} 12. Bc2 {[%emt 0:00:05]} b6 {[%emt 0:01:58]} 13. b3 {[%emt 0:01:25]} Bb7 {[%emt 0:01:23]} 14. Bb2 {[%emt 0:00:42]} c5 {[%emt 0:05:03]} 15. Qd3 {[%emt 0:02:24]} cxd4 {[%emt 0:05:29]} 16. Bxd4 {[%emt 0:04:25]} Bc5 {[%emt 0:01:46]} 17. Bxc5 {[%emt 0:02:11]} Qxd3 {[%emt 0:00:07]} 18. Bxd3 {[%emt 0:00:05]} bxc5 {[%emt 0:00:06]} 19. Ne5 {[%emt 0:01:17]} Rfd8 {[%emt 0:02:03]} 20. Rad1 {[%emt 0:02:29]} Rd4 {[%emt 0:01:42]} 21. b4 {[%emt 0:03:38]} Rad8 {[%emt 0:15:47]} 22. bxc5 {[%emt 0:03:04]} Be4 {[%emt 0:03:34]} 23. Be2 {[%emt 0:21:10]} Rxd1 {[%emt 0:02:04]} 24. Rxd1 {[%emt 0:00:14]} Rxd1+ {[%emt 0:21:07]} 25. Bxd1 {[%emt 0:00:07]} Ne8 {[%emt 0:02:02]} 26. f3 {[%emt 0:02:01]} Bb7 {[%emt 0:03:09]} 27. Kf2 {[%emt 0:00:48]} f6 {[%emt 0:00:38]} 28. Nd3 {[%emt 0:00:30]} Kf7 {[%emt 0:00:47]} 29. Ke3 {[%emt 0:00:48]} Ke7 {[%emt 0:01:52]} 30. Ba4 {[%emt 0:00:57]} Nc7 {[%emt 0:01:42]} 31. Nb4 {[%emt 0:01:03]} f5 {[%emt 0:10:16]} 32. Kd4 {[%emt 0:02:14]} Kf6 {[%emt 0:01:01]} 33. c6 {[%emt 0:00:59]} e5+ {[%emt 0:01:04]} 34. Kc5 {[%emt 0:02:10]} Bc8 {[%emt 0:04:15]} 35. Nd5+ {[%emt 0:00:42]} Nxd5 {[%emt 0:00:22]} 36. cxd5 {[%emt 0:00:09]} e4 {[%emt 0:02:17]} 37. fxe4 {[%emt 0:00:21]} fxe4 {[%emt 0:00:07]} 38. d6 {[%emt 0:03:21]} e3 {[%emt 0:01:03]} 39. Bd1 {[%emt 0:01:00]} Ba6 {[%emt 0:00:45]} 40. c7 {[%emt 0:01:12]} Ke6 {[%emt 0:00:33]} 41. Bg4+ 1-0

[Event "2nd Bieszczady Chess-ch B 2022"]
[Site "Bystre"]
[Date "2022.07.22"]
[Round "7.1"]
[White "Biesiadecki, Adam"]
[Black "Gluch, Pawel"]
[Result "1/2-1/2"]
[ECO "B50"]
[WhiteElo "1776"]
[BlackElo "1663"]
[Annotator "NA RC COMBH"]
[PlyCount "80"]
[EventDate "2022.07.17"]
[EventCountry "POL"]
[SourceTitle "playchess.com"]
[Source "ChessBase"]
[SourceQuality "1"]
[TimeControl "5400+30"]

1. e4 {[%emt 0:00:02]} c5 {[%emt 0:00:11]} 2. Nf3 {[%emt 0:00:04]} d6 {[%emt 0:00:05]} 3. c3 {[%emt 0:00:05]} Nf6 {[%emt 0:00:04]} 4. Bd3 {[%emt 0:00:05]} Nc6 {[%emt 0:00:41]} 5. Bc2 {[%emt 0:00:08]} e5 {[%emt 0:01:32]} 6. O-O {[%emt 0:00:08]} Be7 {[%emt 0:00:06]} 7. h3 {[%emt 0:00:10]} O-O {[%emt 0:00:24]} 8. Re1 {[%emt 0:00:15]} d5 {[%emt 0:04:01]} 9. exd5 {[%emt 0:01:58]} Qxd5 {[%emt 0:00:37]} 10. Qe2 {[%emt 0:07:04]} Re8 {[%emt 0:11:21]} 11. Na3 {[%emt 0:09:33]} Bf8 {[%emt 0:06:31]} 12. Bb3 {[%emt 0:12:16]} Qd8 {[%emt 0:01:33]} 13. Ng5 {[%emt 0:04:41]} Re7 {[%emt 0:02:09]} 14. Qc4 {[%emt 0:10:05]} Qb6 {[%emt 0:10:34]} 15. Qh4 {[%emt 0:06:57]} Bf5 {[%emt 0:07:18]} 16. Nc4 {[%emt 0:12:38]} Qc7 {[%emt 0:07:09]} 17. Ne3 {[%emt 0:00:08]} Bg6 {[%emt 0:00:15]} 18. Nd5 {[%emt 0:00:34]} Nxd5 {[%emt 0:00:28]} 19. Bxd5 {[%emt 0:00:06]} Rd8 {[%emt 0:01:40]} 20. Be4 {[%emt 0:02:32]} Bxe4 {[%emt 0:06:28]} 21. Qxe4 {[%emt 0:02:26]} g6 {[%emt 0:01:46]} 22. Qh4 {[%emt 0:02:22]} f5 {[%emt 0:00:10]} 23. Qc4+ {[%emt 0:01:24]} Kh8 {[%emt 0:01:38]} 24. Qxc5 {[%emt 0:03:52]} h6 {[%emt 0:03:32]} 25. Nf3 {[%emt 0:01:13]} Red7 {[%emt 0:00:08]} 26. Qc4 {[%emt 0:01:48]} e4 {[%emt 0:01:14]} 27. Nh4 {[%emt 0:01:55]} Qd6 {[%emt 0:01:06]} 28. g3 {[%emt 0:04:02]} Be7 {[%emt 0:02:29]} 29. d4 {[%emt 0:01:05]} Bxh4 {[%emt 0:02:01]} 30. gxh4 {[%emt 0:00:51]} Kh7 {[%emt 0:00:15]} 31. Re3 {[%emt 0:05:56]} Qf6 {[%emt 0:03:30]} 32. Rg3 {[%emt 0:00:46]} Qxh4 {[%emt 0:02:50]} 33. Qe6 {[%emt 0:00:42]} Qh5 {[%emt 0:03:02]} 34. Bf4 {[%emt 0:00:43]} Re7 {[%emt 0:05:31]} 35. Qf6 {[%emt 0:00:16]} Rdd7 {[%emt 0:00:25]} 36. Kh2 {[%emt 0:04:08]} Rf7 {[%emt 0:03:11]} 37. Qe6 {[%emt 0:00:04]} Nd8 {[%emt 0:05:21]} 38. Qe8 {[%emt 0:00:36]} Rfe7 {[%emt 0:00:11]} 39. Qf8 {[%emt 0:00:06]} Rf7 {[%emt 0:00:06]} 40. Qe8 {[%emt 0:00:09]} Rfe7 {[%emt 0:00:07]} 1/2-1/2

[Event "2nd Bieszczady Chess-ch B 2022"]
[Site "Bystre"]
[Date "2022.07.22"]
[Round "7.2"]
[White "Kulig, Pawel"]
[Black "Tokarz, Izabela"]
[Result "1-0"]
[ECO "D30"]
[WhiteElo "1720"]
[BlackElo "1694"]
[Annotator "NA RC COMBH"]
[PlyCount "99"]
[EventDate "2022.07.17"]
[EventCountry "POL"]
[SourceTitle "playchess.com"]
[Source "ChessBase"]
[SourceQuality "1"]
[TimeControl "5400+30"]

1. d4 {[%emt 0:00:43]} d5 {[%emt 0:00:04]} 2. c4 {[%emt 0:00:27]} e6 {[%emt 0:00:02]} 3. Nf3 {[%emt 0:00:15]} Nf6 {[%emt 0:00:05]} 4. Bg5 {[%emt 0:00:16]} Be7 {[%emt 0:00:08]} 5. Nc3 {[%emt 0:00:38]} O-O {[%emt 0:00:06]} 6. cxd5 {[%emt 0:00:26]} exd5 {[%emt 0:00:04]} 7. e3 {[%emt 0:00:06]} c6 {[%emt 0:02:05]} 8. Bd3 {[%emt 0:00:34]} Re8 {[%emt 0:07:12]} 9. O-O {[%emt 0:00:15]} Bg4 {[%emt 0:06:45]} 10. Qc2 {[%emt 0:02:59]} Nbd7 {[%emt 0:04:59]} 11. Bf4 {[%emt 0:03:40]} Bxf3 {[%emt 0:00:31]} 12. gxf3 {[%emt 0:00:07]} Nf8 {[%emt 0:00:03]} 13. Kh1 {[%emt 0:01:33]} Ng6 {[%emt 0:06:13]} 14. Be5 {[%emt 0:03:04]} Nh4 {[%emt 0:04:57]} 15. Qe2 {[%emt 0:09:50]} Qd7 {[%emt 0:04:22]} 16. Rg1 {[%emt 0:00:46]} Ng6 {[%emt 0:00:15]} 17. Rg5 {[%emt 0:09:30]} Nxe5 {[%emt 0:08:23]} 18. dxe5 {[%emt 0:05:11]} Ne4 {[%emt 0:01:38]} 19. Rg2 {[%emt 0:09:40]} Nc5 {[%emt 0:01:18]} 20. Rag1 {[%emt 0:01:01]} Bf8 {[%emt 0:00:22]} 21. f4 {[%emt 0:01:50]} Nxd3 {[%emt 0:00:18]} 22. Qxd3 {[%emt 0:00:06]} Rad8 {[%emt 0:02:40]} 23. b4 {[%emt 0:07:39]} Qe6 {[%emt 0:01:37]} 24. Ne2 {[%emt 0:01:34]} f6 {[%emt 0:03:24]} 25. Nd4 {[%emt 0:00:56]} Qf7 {[%emt 0:03:31]} 26. e6 {[%emt 0:08:37]} Qh5 {[%emt 0:03:06]} 27. Rg3 {[%emt 0:01:49]} Kh8 {[%emt 0:00:54]} 28. Qf1 {[%emt 0:01:31]} Re7 {[%emt 0:01:37]} 29. Rh3 {[%emt 0:00:10]} Qe8 {[%emt 0:00:07]} 30. Qd3 {[%emt 0:01:49]} h6 {[%emt 0:00:48]} 31. Qe2 {[%emt 0:03:13]} Rxe6 {[%emt 0:00:15]} 32. Qg4 {[%emt 0:03:06]} Re4 {[%emt 0:03:39]} 33. Nf5 {[%emt 0:02:37]} Qe6 {[%emt 0:03:15]} 34. Qg6 {[%emt 0:04:27]} Rxb4 {[%emt 0:02:01]} 35. Rhg3 {[%emt 0:04:09]} Rd7 {[%emt 0:01:31]} 36. f3 {[%emt 0:02:13]} Qf7 {[%emt 0:03:57]} 37. Qg4 {[%emt 0:00:36]} Rb2 {[%emt 0:00:31]} 38. Nh4 {[%emt 0:01:53]} Re2 {[%emt 0:02:43]} 39. Qf5 {[%emt 0:00:55]} g5 {[%emt 0:01:49]} 40. Ng6+ {[%emt 0:03:05]} Kg7 {[%emt 0:00:10]} 41. h4 {[%emt 0:00:50]} Rd8 {[%emt 0:01:15]} 42. Qd3 {[%emt 0:01:13]} Rxa2 {[%emt 0:00:34]} 43. fxg5 {[%emt 0:02:42]} hxg5 {[%emt 0:00:50]} 44. hxg5 {[%emt 0:00:20]} f5 {[%emt 0:00:30]} 45. Nf4 {[%emt 0:00:37]} Bd6 {[%emt 0:02:04]} 46. Qd4+ {[%emt 0:00:21]} Kf8 {[%emt 0:00:52]} 47. g6 {[%emt 0:00:28]} Qg8 {[%emt 0:00:23]} 48. Rh3 {[%emt 0:00:35]} Bxf4 {[%emt 0:00:39]} 49. exf4 {[%emt 0:01:09]} Ke7 {[%emt 0:00:16]} 50. Qe5+ {[%emt 0:00:19]} 1-0

[Event "2nd Bieszczady Chess-ch B 2022"]
[Site "Bystre"]
[Date "2022.07.22"]
[Round "7.3"]
[White "Strojek, Kazimierz"]
[Black "Sola, Wojciech"]
[Result "0-1"]
[ECO "B23"]
[WhiteElo "1668"]
[BlackElo "1780"]
[Annotator "NA RC COMBH"]
[PlyCount "62"]
[EventDate "2022.07.17"]
[EventCountry "POL"]
[SourceTitle "playchess.com"]
[Source "ChessBase"]
[SourceQuality "1"]
[TimeControl "5400+30"]

1. e4 {[%emt 0:02:40]} c5 {[%emt 0:00:10]} 2. Nc3 {[%emt 0:00:09]} g6 {[%emt 0:00:22]} 3. g3 {[%emt 0:00:18]} Bg7 {[%emt 0:00:08]} 4. Bg2 {[%emt 0:00:09]} e5 {[%emt 0:01:38]} 5. d3 {[%emt 0:00:12]} Nc6 {[%emt 0:00:52]} 6. Be3 {[%emt 0:00:20]} d6 {[%emt 0:00:12]} 7. Qd2 {[%emt 0:00:39]} Be6 {[%emt 0:04:39]} 8. Nge2 {[%emt 0:02:12]} Nge7 {[%emt 0:00:28]} 9. O-O {[%emt 0:00:09]} O-O {[%emt 0:00:12]} 10. f4 {[%emt 0:05:14]} f5 {[%emt 0:01:08]} 11. Bh3 {[%emt 0:00:39]} Qd7 {[%emt 0:00:35]} 12. Bg2 {[%emt 0:13:01]} Rad8 {[%emt 0:01:44]} 13. a3 {[%emt 0:01:12]} b6 {[%emt 0:00:23]} 14. Nd5 {[%emt 0:00:45]} exf4 {[%emt 0:05:23]} 15. Nexf4 {[%emt 0:02:35]} Bxb2 {[%emt 0:03:18]} 16. c3 {[%emt 0:00:19]} Bxa1 {[%emt 0:00:09]} 17. Rxa1 {[%emt 0:00:01]} fxe4 {[%emt 0:06:23]} 18. dxe4 {[%emt 0:00:44]} Ne5 {[%emt 0:00:48]} 19. Qa2 {[%emt 0:06:27]} Nxd5 {[%emt 0:04:26]} 20. Nxd5 {[%emt 0:02:14]} Qf7 {[%emt 0:01:29]} 21. Rf1 {[%emt 0:00:14]} Bxd5 {[%emt 0:00:39]} 22. exd5 {[%emt 0:02:15]} Qe7 {[%emt 0:00:38]} 23. Qe2 {[%emt 0:01:01]} Rxf1+ {[%emt 0:00:27]} 24. Qxf1 {[%emt 0:07:19]} Rf8 {[%emt 0:00:35]} 25. Qc1 {[%emt 0:00:22]} Re8 {[%emt 0:06:03]} 26. Bf2 {[%emt 0:02:40]} Nd3 27. Qd2 Qe2 {[%emt 0:03:30]} 28. Qxe2 {[%emt 0:01:11]} Rxe2 {[%emt 0:00:08]} 29. Bf1 {[%emt 0:00:16]} Rxf2 {[%emt 0:00:12]} 30. Bxd3 {[%emt 0:00:04]} Rf3 {[%emt 0:00:17]} 31. Bb5 {[%emt 0:00:26]} Rxc3 {[%emt 0:00:20]} 0-1

[Event "2nd Bieszczady Chess-ch B 2022"]
[Site "Bystre"]
[Date "2022.07.22"]
[Round "7.4"]
[White "Kusiak, Mateusz"]
[Black "Mikula, Maciej"]
[Result "1-0"]
[ECO "B27"]
[WhiteElo "1693"]
[BlackElo "1620"]
[Annotator "NA RC COMBH"]
[PlyCount "107"]
[EventDate "2022.07.17"]
[EventCountry "POL"]
[SourceTitle "playchess.com"]
[Source "ChessBase"]
[SourceQuality "1"]
[TimeControl "5400+30"]

1. e4 {[%emt 0:00:02]} c5 {[%emt 0:00:17]} 2. Nf3 {[%emt 0:00:06]} g6 {[%emt 0:00:14]} 3. d4 {[%emt 0:00:04]} cxd4 {[%emt 0:00:27]} 4. Qxd4 {[%emt 0:00:04]} Nf6 {[%emt 0:00:21]} 5. Nc3 {[%emt 0:00:13]} Nc6 {[%emt 0:00:27]} 6. Qa4 {[%emt 0:00:04]} d6 {[%emt 0:01:56]} 7. e5 {[%emt 0:00:06]} dxe5 {[%emt 0:02:10]} 8. Nxe5 {[%emt 0:00:06]} Qd4 {[%emt 0:01:42]} 9. Qxd4 {[%emt 0:09:30]} Nxd4 {[%emt 0:00:17]} 10. Nb5 {[%emt 0:00:20]} Nxc2+ {[%emt 0:05:41]} 11. Kd1 {[%emt 0:00:05]} Nxa1 {[%emt 0:00:18]} 12. Nc7+ {[%emt 0:00:05]} Kd8 {[%emt 0:00:04]} 13. Nxa8 {[%emt 0:00:04]} Be6 {[%emt 0:00:56]} 14. Bc4 {[%emt 0:00:41]} Bxc4 {[%emt 0:06:09]} 15. Nxc4 {[%emt 0:00:04]} Nd5 {[%emt 0:02:28]} 16. Ne5 {[%emt 0:31:22]} Kc8 {[%emt 0:08:11]} 17. Nxf7 {[%emt 0:00:06]} Rg8 {[%emt 0:00:28]} 18. Nh6 {[%emt 0:21:22]} Bxh6 {[%emt 0:07:33]} 19. Bxh6 {[%emt 0:00:07]} Kb8 {[%emt 0:02:34]} 20. Kd2 {[%emt 0:00:28]} g5 {[%emt 0:10:25]} 21. Re1 {[%emt 0:10:17]} Kxa8 {[%emt 0:05:27]} 22. f3 {[%emt 0:05:07]} Nf4 {[%emt 0:07:39]} 23. Rxa1 {[%emt 0:00:31]} Rg6 {[%emt 0:08:33]} 24. Bf8 {[%emt 0:00:11]} Rd6+ {[%emt 0:01:36]} 25. Kc2 {[%emt 0:00:51]} Re6 {[%emt 0:02:13]} 26. Rd1 {[%emt 0:00:46]} Kb8 {[%emt 0:02:50]} 27. g3 {[%emt 0:00:23]} Ng6 {[%emt 0:00:54]} 28. Bh6 {[%emt 0:02:03]} Re2+ {[%emt 0:01:26]} 29. Rd2 {[%emt 0:00:09]} Re5 {[%emt 0:01:28]} 30. Bg7 {[%emt 0:01:23]} Rf5 {[%emt 0:03:10]} 31. Rd3 h5 {[%emt 0:02:01]} 32. Bd4 {[%emt 0:02:41]} g4 {[%emt 0:03:49]} 33. fxg4 {[%emt 0:01:08]} hxg4 {[%emt 0:00:06]} 34. Be3 {[%emt 0:00:33]} Rf3 {[%emt 0:03:45]} 35. Kd2 {[%emt 0:00:51]} e5 {[%emt 0:07:29]} 36. Rd6 {[%emt 0:02:02]} Nf8 {[%emt 0:00:59]} 37. Ke2 {[%emt 0:03:10]} Rf5 {[%emt 0:01:37]} 38. Bc5 {[%emt 0:01:10]} Nh7 {[%emt 0:01:05]} 39. Rh6 Ng5 {[%emt 0:00:21]} 40. Rh5 {[%emt 0:01:37]} e4 {[%emt 0:00:42]} 41. Be3 {[%emt 0:00:13]} Rb5 {[%emt 0:00:16]} 42. Rxg5 {[%emt 0:00:17]} Rxb2+ {[%emt 0:00:08]} 43. Bd2 {[%emt 0:00:06]} Rxa2 {[%emt 0:00:24]} 44. Rxg4 {[%emt 0:00:10]} Ra4 {[%emt 0:00:57]} 45. Ke3 {[%emt 0:00:11]} b5 {[%emt 0:00:14]} 46. Rxe4 {[%emt 0:00:11]} Ra3+ {[%emt 0:00:05]} 47. Ke2 {[%emt 0:00:45]} a5 {[%emt 0:00:07]} 48. Re5 {[%emt 0:01:18]} b4 {[%emt 0:00:25]} 49. Re3 {[%emt 0:00:48]} b3 {[%emt 0:00:46]} 50. Bc1 {[%emt 0:04:29]} Ra2+ {[%emt 0:00:37]} 51. Kd1 {[%emt 0:00:33]} a4 {[%emt 0:00:17]} 52. Re2 {[%emt 0:00:14]} a3 {[%emt 0:00:32]} 53. Rxa2 {[%emt 0:00:07]} bxa2 {[%emt 0:00:09]} 54. Bf4+ {[%emt 0:00:03]} 1-0